Cogmind - Beta 12 *** ADVENTURER MODE // 2023.04.12 @ 19:52:59 Player: C23 Result: Self-destructed Performance ------------- Evolutions (1) 500 Regions Visited (2) 400 Robots Destroyed (20) 100 Value Destroyed (297) 297 Prototype IDs (2) 40 Alien Tech Used (0) 0 Bonus (0) 0 TOTAL SCORE: 1337 Bonus ------- None Cogmind --------- Core Integrity 281/400 Matter 65/300 Energy 0/100 System Corruption 0% Temperature Cool (0) Movement Core (100) Ox1 Location -9/Materials Parts ------- > --- POWER (1) -------- (None) > --- PROPULSION (3) --- Improved Flight Unit Improved Flight Unit Improved Flight Unit > --- UTILITY (3) ------ Improved Targeting Computer ECM Suite > --- WEAPON (2) ------- Beam Cannon > --- INVENTORY (5) ---- Ion Engine Flight Unit Flight Unit Terrain Scanner Peak State ------------ > --- POWER ------------ Light Nuclear Core > --- PROPULSION ------- Wheel Wheel > --- UTILITY ---------- Terrain Scanner Hardened Light Armor Plating Hardened Light Armor Plating > --- WEAPON ----------- Improved EM Shotgun Beam Cannon > --- INVENTORY -------- Ion Engine Light Ion Engine Flight Unit High-capacity Matter Pod Grenade Launcher [Rating: 14] Favorites ----------- Power Light Ion Engine Engine Light Ion Engine Power Core Light Nuclear Core Propulsion Wheel Wheel Wheel Hover Unit Hover Unit Flight Unit Improved Flight Unit Utility Terrain Scanner Device Terrain Scanner Storage High-capacity Matter Pod Processor Targeting Computer Protection Hardened Light Armor Plating Weapon Grenade Launcher Energy Gun Small Laser Energy Cannon Beam Cannon Launcher Grenade Launcher Special Melee Weapon Datajack Build | -11 -10 -9 ------- Run | Jun Mat Mat Slots Evolved 2 | . . 2 Power . | . . . Propulsion 1 | . . 1 Utility 1 | . . 1 Weapon . | . . . Parts Attached 28 | 4 11 13 Power 3 | 1 . 2 Engine 2 | 1 . 1 Core 1 | . . 1 Reactor . | . . . Propulsion 9 | 2 2 5 Treads . | . . . Leg . | . . . Wheel 3 | 2 1 . Hover 1 | . 1 . Flight 5 | . . 5 Utility 9 | . 6 3 Device 2 | . 1 1 Storage 2 | . 2 . Processor 2 | . 1 1 Hackware . | . . . Protection 3 | . 2 1 Artifact . | . . . Weapon 7 | 1 3 3 Energy Gun 2 | 1 . 1 Energy Cannon 1 | . 1 . Ballistic Gun . | . . . Ballistic Cannon . | . . . Launcher 3 | . 1 2 Special Weapon . | . . . Impact Weapon . | . . . Slashing Weapon . | . . . Piercing Weapon . | . . . Special Melee Weapon 1 | . 1 . Unidentified Prototypes 2 | . . 2 Parts Lost 2 | . 1 1 Power 1 | . . 1 Propulsion 1 | . 1 . Utility . | . . . Weapon . | . . . Highest Loss Streak 1 | . 1 1 To Critical Strikes . | . . . Average Slot Usage (%) 89 | . 95 79 Engine 9 | . 14 3 Core 2 | . . 5 Wheel 17 | . 20 12 Hover 4 | . 6 . Flight 4 | . . 11 Device 9 | . 8 11 Storage 3 | . 6 . Processor 5 | . 5 5 Protection 7 | . 4 12 Energy Gun 4 | . 7 . Energy Cannon 5 | . 2 11 Launcher 8 | . 11 4 Special Melee Weapon 4 | . 6 2 Naked Turns . | . . . Heaviest Build 22 | 4 13 22 Greatest Support 20 | 20 20 20 Greatest Overweight (x) 3 | . 3 2 Average Overweight (x) . | . . . Largest Inventory Capacity 5 | 5 5 5 Average Capacity 5 | 5 5 5 Most Carried 5 | 4 5 5 Average Carried 2 | 1 1 3 Final Capacity 5 | 5 5 5 Final Carried 5 | . 5 4 Class Distribution -------------------- 100% | Mutant Dominant Class ---------------- Mutant | -10/Materials Mutant | -9/Materials Resources | -11 -10 -9 ----------- Run | Jun Mat Mat Matter Collected 415 | 233 97 85 Remotely . | . . . Salvage Created 218 | . 89 129 Parts 32 | . 17 15 Haulers Intercepted . | . . . Recyclers Shooed . | . . . Parts Field Recycled . | . . . Retrieved Matter . | . . . Parts Self-Destructed . | . . . Prevented . | . . . Kills | -11 -10 -9 ------- Run | Jun Mat Mat Combat Hostiles Destroyed 16 | . 8 8 Cannons 5 | . . 5 AOE 11 | . 8 3 Classes Destroyed 5 | . 4 1 Builder 3 | . 3 . Watcher 1 | . 1 . Swarmer 13 | . 6 7 Grunt 2 | . 2 . Sentry 1 | . . 1 Best Kill Streak 6 | . 6 4 Combat Bots Only 5 | . 5 4 Max Kills in Single Turn 3 | . 3 2 Gunslinging . | . . . Exploded 2 | . 2 2 Melee . | . . . Uniques/NPCs Destroyed . | . . . Combat | -11 -10 -9 -------- Run | Jun Mat Mat Damage Taken 522 | . 190 332 Core 181 | . 62 119 Absorbed by Shields . | . . . Regen/Repaired (Parts) 8 | . . 8 Core Remaining (%) 87 | 100 75 . Volleys Fired 29 | . 12 17 Largest 2 | . 1 2 Hottest 90 | . 30 90 Shots Fired 35 | . 12 23 Gun . | . . . Cannon 17 | . . 17 Launcher 18 | . 12 6 Special . | . . . Kinetic . | . . . Thermal 17 | . . 17 Explosive 18 | . 12 6 Electromagnetic . | . . . Robot Hit Streak 5 | . 5 5 Robot Miss Streak 1 | . 1 1 Penetration Max . | . . . Secondary Targets . | . . . Shots Hit Robots 26 | . 14 12 Core Hits 28 | . 19 9 Critical Kills . | . . . Critical Parts Destroyed . | . . . Critical Strikes . | . . . Melee Attacks 5 | . 5 . Impact . | . . . Slashing . | . . . Piercing . | . . . Sneak Attacks 2 | . 2 . Combat Hostiles . | . . . Follow-up Attacks . | . . . Damage Inflicted 1193 | . 910 283 Guns . | . . . Cannons 176 | . . 176 Explosions 1017 | . 910 107 Melee . | . . . Ramming . | . . . Kinetic . | . . . Thermal 176 | . . 176 Explosive 1017 | . 910 107 Electromagnetic . | . . . Impact . | . . . Slashing . | . . . Piercing . | . . . Highest Corruption . | . . . Average Corruption . | . . . Corruption Purged . | . . . Corruption Blocked . | . . . Overload Shots . | . . . Overflow Damage 29 | . 29 . Projectiles . | . . . Explosions 29 | . 29 . Melee . | . . . Knockbacks . | . . . Impact . | . . . Kinetic . | . . . Secondary . | . . . Self-Inflicted Damage 63 | . 39 24 Shots 4 | . 3 1 Rammed . | . . . Targets Rammed . | . . . Kicked . | . . . Crushed . | . . . Highest Temperature 209 | . 7 209 Average Temperature 63 | . 3 66 Received Heat Transfer 162 | . 72 90 Siege Activations . | . . . Robots Corrupted . | . . . Combat Hostiles . | . . . Parts Fried . | . . . Impact Corruptions . | . . . Robots Melted . | . . . Combat Hostiles . | . . . Parts Melted . | . . . Heat Transferred 370 | . . 370 Parts Sabotaged . | . . . Parts Stolen . | . . . Parts Stripped . | . . . Power Chain Reactions . | . . . Missiles Intercepted . | . . . Alert | -11 -10 -9 ------- Run | Jun Mat Mat Peak Influence 308 | . 272 308 Initial 25 | . . 25 Average 127 | . 121 151 Maximum Alert Level 1 | . 1 1 Low Security (%) 70 | 100 77 56 Level 1 29 | . 22 43 Level 2 . | . . . Level 3 . | . . . Level 4 . | . . . Level 5 . | . . . High Security . | . . . Max Security . | . . . Squads Dispatched 1 | . . 1 Investigation . | . . . Extermination . | . . . Reinforcement 1 | . . 1 Assault . | . . . Garrison . | . . . Intercept . | . . . Searches Triggered . | . . . Construction Impeded . | . . . Haulers Reinforced . | . . . Active Scanning Responses . | . . . Cargo Convoy Interrupts . | . . . Stealth | -11 -10 -9 --------- Run | Jun Mat Mat Distress Signals 4 | . 1 3 Communications Jammed . | . . . Distress Signals . | . . . Times Spotted 25 | . 12 13 Peak Tracking Total 5 | . 5 5 Tactical Retreats 1 | . . 1 Traps | -11 -10 -9 ------- Run | Jun Mat Mat Traps Triggered . | . . . Indirectly . | . . . Trap Hack Attempts . | . . . Triggered . | . . . Disarmed . | . . . Reprogrammed . | . . . Reused . | . . . Traps Extracted . | . . . Installed . | . . . Triggered . | . . . Machines | -11 -10 -9 ---------- Run | Jun Mat Mat Machines Disabled 1 | . . 1 Max in Single Turn 1 | . . 1 Machines Repaired . | . . . Machines Sabotaged . | . . . Overloaded Fab Kills . | . . . Hacking | -11 -10 -9 --------- Run | Jun Mat Mat Machines Accessed 6 | . 5 1 Terminals 3 | . 3 . Fabricators . | . . . Repair Stations 2 | . 1 1 Recycling Units 1 | . 1 . Scanalyzers . | . . . Garrison Access . | . . . Total Hacks 13 | . 9 4 Successful 10 | . 7 3 Failed 3 | . 2 1 Catastrophic . | . . . Database Lockouts . | . . . Manual . | . . . Terminals 7 | . 7 . Fabricators . | . . . Repair Stations 5 | . 1 4 Recycling Units 1 | . 1 . Scanalyzers . | . . . Garrison Access . | . . . Terminal Hacks 6 | . 6 . Record 5 | . 5 . Locate Traps 1 | . 1 . Fabricator Hacks . | . . . Repair Station Hacks 4 | . 1 3 Scan Component 3 | . 1 2 Repair 1 | . . 1 Recycling Unit Hacks . | . . . Scanalyzer . | . . . Garrison Access Hacks . | . . . Unauthorized Hacks . | . . . Terminals . | . . . Fabricators . | . . . Repair Stations . | . . . Recycling Units . | . . . Scanalyzers . | . . . Garrison Access . | . . . Data Cores Recovered . | . . . Used . | . . . Hacking Detections 3 | . 2 1 Full Trace Events 1 | . . 1 Feedback Events . | . . . Feedback Blocked . | . . . Robot Schematics Acquired . | . . . Robots Built . | . . . Authchips . | . . . Time . | . . . Total Robot Build Rating . | . . . Part Schematics Acquired . | . . . Parts Built . | . . . Authchips . | . . . Time . | . . . Total Part Build Rating . | . . . Parts Repaired 1 | . . 1 Time 26 | . . 26 Parts Recycled . | . . . Recycled Matter . | . . . Retrieved Matter . | . . . Retrieved Components . | . . . Parts Scanalyzed . | . . . Part Schematics Acquired . | . . . Parts Damaged . | . . . Bothacking | -11 -10 -9 ------------ Run | Jun Mat Mat Used RIF Installer . | . . . Robots Hacked 2 | . 2 . Non-combat 1 | . 1 . Combat 1 | . 1 . Robot Hacks Applied 3 | . 3 . parse_system 3 | . 3 . Relay Couplers Released . | . . . Fabnet Peak Effective % . | . . . Robots Rewired . | . . . Allies Hacked . | . . . Hacks Repelled . | . . . Allies | -11 -10 -9 -------- Run | Jun Mat Mat Total Allies . | . . . Largest Group . | . . . Highest-Rated Group . | . . . Highest-Rated Ally . | . . . Total Orders . | . . . Ally Attacks . | . . . Total Damage . | . . . Kills . | . . . Allies Corrupted . | . . . Allies Melted . | . . . Intel | -11 -10 -9 ------- Run | Jun Mat Mat Robot Analysis Total . | . . . Derelict Logs Recovered . | . . . Drone Launches . | . . . Drone Recoveries . | . . . Exploration | -11 -10 -9 ------------- Run | Jun Mat Mat Turns Passed 829 | 32 488 309 Spaces Moved 804 | 37 435 332 Core 41 | 18 6 17 Treads . | . . . Legs . | . . . Wheels 452 | 19 268 165 Hover 161 | . 161 . Flight 150 | . . 150 Fastest Speed 34 | 50 80 34 Average Speed 83 | 65 98 66 Slowest Speed 200 | 80 200 117 Overloaded Moves . | . . . Propulsion Burnouts . | . . . Robots Hopped 4 | . . 4 Cave-ins Triggered . | . . . Exploration Rate (%) 30 | 3 67 20 Regions Visited 2 Branch Regions . Pre-discovered Areas . | . . . Known Exits Taken . | . . . Unknown Exits Taken 2 | 1 1 . Scrap Searched . | . . . Spaces Dug . | . . . Terrain Destroyed 75 | . 43 32 Melee . | . . . Projectile . | . . . AOE 75 | . 43 32 Terrain Rammed . | . . . Walls Destroyed . | . . . Machines Disabled . | . . . Actions | -11 -10 -9 --------- Run | Jun Mat Mat Total 918 | 44 480 394 Wait 15 | . 2 13 Move 794 | 36 434 324 Hop 4 | . . 4 Pick Up 27 | 4 12 11 Fast Attach . | . . . Attach 15 | 4 6 5 Detach 2 | . 1 1 Swap 13 | . 5 8 Drop 14 | . 3 11 Fire 29 | . 12 17 Melee 5 | . 5 . Ram . | . . . Kick . | . . . Crush . | . . . Escape Stasis . | . . . Rewire . | . . . Trap . | . . . Miscellaneous . | . . . Route ------- -11/Junkyard -10/Materials (discovered 2 exits: *Mat / [*Min]) -9/Materials History --------- Turn | Location | Event 8 | -11/Junkyard | Discovered new exit (range 15) 33 | -11/Junkyard | Entered Materials 313 | -10/Materials | Build established: Mutant 429 | -10/Materials | Discovered new exit (range 13) 460 | -10/Materials | Discovered new exit (range 16) 521 | -10/Materials | Entered another Materials area 521 | -9/Materials | Evolved 2 slots: Propulsion x1, Utility x1 606 | -9/Materials | Repaired Datajack? 830 | -9/Materials | Self-destructed Last Messages --------------- Dropped Hcp. Matter Pod. U-05 Engineer lays Concrete. Dropped Lgt. Nuclear Core. U-05 Engineer lays Concrete. Acquired ECM Suite. Hadron Collector disabled. Y-45 Defender destroyed. Acquired 50 matter. Acquired Prototype Flight Unit. Identified Imp. Flight Unit. Acquired Imp. Flight Unit. Lgt. Ion Engine destroyed. Acquired Imp. Flight Unit. K-01 Serf collects debris. ALERT: Hostiles spotted, dispatching reinforcements to Terminal M002. Acquired Lgt. Nuclear Core. Acquired Ion Engine. Dropped Lgt. Nuclear Core. R-06 Scavenger collects Lgt. Nuclear Core. Critical hit (Burn: +37). Map ----- +----------------------------------------------------+ | ????????????????????#????????????+#??????????????? | | ???????????????????????#????????? #??????????????? | | ??????????????????????#???####### #???? ?????????? | | ????????????????????############# ##?????????????? | | ?????????????????#??# ???? ?????????? | | ????????????????????# #???????????????? | | ????????????????????# #???????????????? | | ????????????????????# !! = #???????????????? | | ?????????????????????????##!]= #???????????????? | | ?????????????????????#???## ## #???????????????? | | ???????????????????#????### ## #???????????????? | | ????????????????????#######/## #????#??????????? | | ???????????????????## *# #?#???#?????????? | | ????????????????????# # #??##??#?##?????? | | ??????????????????#?# # ######### #?????? | | ?????????????#??????# [[# # #?????? | | ???????????#????????# + # """ #?????? | | ?????????????#??????# # # = "Y" #?????? | | ??????????????#?????# # # = #?????? | | ????????????????????# # # """ #?????? | | ????????????????????# # # """ #?????? | | ??????????????????########+### # """ #?????? | | ??????????????????# ## #?# # #?????? | | ??????????????????# ## #?# ####+######?????? | | ??????????????????# ## ### #????????? | | ???????????#??????# """ #@ #????????? | | ??????????????????# """ + """ #????????? | | ??????????????????# """ # """ #????????? | | ???????????????? ?# ##Y#### """ #????????? | | ??????????????????# """ ## #??# ##????????? | | ??????????????????# """ ## #??# #??????###? | | ?????????????????## """ ## #??# """ ######## ## | | ??????????????????# ## #??# """ # # | | ?????????????????##? ## #??# """ # """ ! # | | ????????????????????###### #??# # """ # | | ??????????????? ???????#?# #??# # """! # | | ?????????????????????????# #??# + "" = " # | | ?????????????????#???????# #??###### # [ T # | | ??????????????????########+######### #= " # | | ??????????#???????# # # # # | | ?????????????????## # # ########+## | | ???????????#?????# # / #??????# #? | | ?????????????????# " # # #??????# #? | | ????????????#????## #######+### #?#????# #? | | ?????????????????# # #??????# #? | | ?????????????????## + ######## #? | | ?????????????????# # # """ + #? | | ?????????????????##""" # ######### # """ # #? | | ?????????????????# """ # ## # # """ # #? | | ???????????????? # # ## """ # # !# ## | +----------------------------------------------------+ Best States ------------- Heat Dissipation 28 Energy Generation 14 Energy Capacity 160 Matter Stores 293 Matter Capacity 500 Sight Range 16 Terrain Scan Range 14 Terrain Scan Density 10 ECM Strength 1 Armor Coverage 300 Resistance: KI 20 Resistance: TH 20 Resistance: EX 20 Resistance: EM 20 Resistance: I 20 Resistance: S 20 Resistance: P 20 Utility Shielding 33 Evasion (%) 63 Targeting Accuracy 6 Offensive Hacking 10 Item Schematics ----------------- None Robot Schematics ------------------ None Fabricated ------------ Nothing Alien Tech Used ----------------- None Achievements -------------- Part-time Mechanic Risk Taker Challenges ------------ None Game ------ Seed LargeScatterSink Manual? 0 Play Time 00:24:31 Cumulative 2.2 hours Start 2023.04.12 @ 19:27:02 End 2023.04.12 @ 19:52:59 Sessions 1 Manual Loads 0 Difficulty Adventurer Special Mode None Game No. 6 Rogue 4 Adventurer 2 Explorer 0 Win Type - Total 0 Types 0/0/0/0/0/0/0/0/0 Lore% 1 Gallery% 6 Achievement% 2 Wizard Run 0 Options --------- ASCII 0 Keyboard 0 Movement Vi Keybinds 0 Fullscreen 1 Font 18/SmallcapsGlow Map View 112x50 Tactical HUD 0 Map Filters NONE Filters NONE Steam 1 RUN: 1fc1c977-03c9-4f91-bcc3-f6b4b0cb2fef